fUST/lending_fUST_20240801
["ID","MTS","AMOUNT","RATE_DAILY","PERIOD"]
[333758057,1722455438111,-166.666666,0.00012017,2]
[333758058,1722455438120,-166.666666,0.00012095,2]
[333758060,1722455438130,-166.666666,0.00012174,2]
[333758062,1722455438141,-166.666666,0.00012252,2]
[333758064,1722455438151,-166.666666,0.0001233,2]
[333758066,1722455438165,-166.666666,0.00012408,2]
[333758067,1722455438176,-166.666666,0.00012487,2]
[333758069,1722455438185,-166.666666,0.00012565,2]
[333758070,1722455438195,-166.666666,0.00012643,2]
[333758071,1722455438204,-420.0,0.00012708,2]
[333758072,1722455438214,-177.313018,0.00012986,2]
[333758073,1722455438224,-2440.63840554,0.00013448,2]
[333758074,1722455438234,-1154.35963035,0.00013498,2]
[333758075,1722455438244,-326.67156837,0.00013512,2]
[333758076,1722455438253,-1154.35963031,0.00013523,2]
[333758077,1722455438264,-1154.35963031,0.00013548,2]
[333758078,1722455438274,-1154.35963031,0.00013573,2]
[333758079,1722455438283,-15607.4358214,0.00013588,2]
[333758080,1722455438295,-500.0,0.00013597,2]
[333758081,1722455438307,-1154.35963031,0.00013598,2]
[333758082,1722455438317,-20240.58095481,0.00013598,2]
[333758083,1722455438340,-83808.34164331,0.00013598,2]
[333758084,1722455438349,-2000.0,0.00013598,2]
[333758085,1722455438359,-180.25067529,0.00013642,5]
[333758086,1722455438368,-15607.4358214,0.00013642,2]
[333758087,1722455438378,-19981.60750524,0.00013652,2]
[333758088,1722455438388,-500.0,0.00013687,2]
[333758089,1722455438399,-93644.6149286,0.00013688,2]
[333758090,1722455438411,-500.0,0.00013697,2]
[333758091,1722455438421,-500.0,0.00013697,2]
[333758092,1722455438430,-500.0,0.00013697,2]
[333758093,1722455438439,-500.0,0.00013697,2]
[333758094,1722455438449,-500.0,0.00013697,2]
[333758095,1722455438458,-10257.12182986,0.00013698,5]
[333758096,1722455438468,-500.63230799,0.00013698,2]
[333758097,1722455438477,-500.0,0.00013698,2]
[333758098,1722455438486,-500.0,0.00013698,2]
[333758099,1722455438495,-500.0,0.00013698,2]
[333758100,1722455438505,-7968.33486527,0.00013698,2]
[333758101,1722455438515,-500.0,0.00013698,2]
[333758102,1722455438524,-500.0,0.00013698,2]
[333758103,1722455438534,-500.0,0.00013698,2]
[333758104,1722455438543,-500.0,0.00013698,2]
[333758105,1722455438553,-500.0,0.00013698,2]
[333758106,1722455438562,-500.0,0.00013698,2]
[333758107,1722455438572,-500.0,0.00013698,2]
[333758108,1722455438582,-326.03432267,0.00013698,2]
[333758109,1722455438591,-500.0,0.00013698,2]
[333758110,1722455438600,-500.0,0.00013698,2]
[333758111,1722455438611,-500.0,0.00013698,2]
[333758112,1722455438620,-500.0,0.00013698,2]
[333758113,1722455438629,-500.0,0.00013698,2]
[333758114,1722455438639,-500.0,0.00013698,2]
[333758115,1722455438648,-500.0,0.00013698,2]
[333758116,1722455438660,-500.0,0.00013698,2]
[333758117,1722455438669,-1203.97,0.00013698,2]
[333758118,1722455438679,-500.0,0.00013698,2]
[333758119,1722455438688,-500.0,0.00013698,2]
[333758120,1722455438698,-500.0,0.00013698,2]
[333758121,1722455438707,-505.34550588,0.00013698,2]
[333758122,1722455438716,-500.0,0.00013698,2]
[333758123,1722455438726,-698.98,0.00013698,2]
[333758124,1722455438735,-549.47,0.00013698,2]
[333758125,1722455438744,-500.0,0.00013698,2]
[333758126,1722455438753,-575.43,0.00013698,2]
[333758127,1722455438762,-500.86,0.00013698,2]
[333758128,1722455438771,-500.0,0.00013698,2]
[333758129,1722455438781,-500.0,0.00013698,2]
[333758130,1722455438790,-511.04055185,0.00013698,2]
[333758131,1722455438800,-500.0,0.00013698,2]
[333758132,1722455438814,-500.0,0.00013698,2]
[333758133,1722455438824,-500.0,0.00013698,2]
[333758134,1722455438833,-500.0,0.00013698,2]
[333758135,1722455438843,-500.0,0.00013698,2]
[333758136,1722455438854,-573.50308911,0.00013698,2]
[333758137,1722455438863,-500.0,0.00013698,2]
[333758138,1722455438873,-500.0,0.00013698,2]
[333758139,1722455438885,-500.0,0.00013698,2]
[333758140,1722455438895,-500.0,0.00013698,2]
[333758141,1722455438904,-500.0,0.00013698,2]
[333758142,1722455438920,-500.0,0.00013698,2]
[333758143,1722455438929,-500.0,0.00013698,2]
[333758144,1722455438939,-1661.4,0.00013698,2]
[333758145,1722455438948,-158.7865081,0.00013698,2]
[333758146,1722455438957,-574.73638643,0.00013698,2]
[333758147,1722455438967,-500.0,0.00013698,2]
[333758148,1722455438976,-500.0,0.00013698,2]
[333758149,1722455438986,-500.0,0.00013698,2]
[333758150,1722455438995,-500.0,0.00013698,2]
[333758151,1722455439004,-194.9161959,0.00013698,2]
[333758152,1722455439015,-513.41,0.00013698,2]
[333758153,1722455439025,-500.0,0.00013698,2]
[333758154,1722455439034,-500.0,0.00013698,2]
[333758155,1722455439044,-500.0,0.00013698,2]
[333758156,1722455439054,-500.0,0.00013698,2]
[333758157,1722455439068,-500.0,0.00013698,2]
[333758158,1722455439078,-500.0,0.00013698,2]
[333758159,1722455439088,-500.0,0.00013698,2]
[333758160,1722455439109,-507.57639924,0.00013698,2]
[333758161,1722455439119,-500.0,0.00013698,2]
[333758162,1722455439129,-500.0,0.00013698,2]
[333758163,1722455439139,-634.25,0.00013698,2]
[333758164,1722455439150,-1752.83,0.00013698,2]
[333758165,1722455439162,-450.83068183,0.00013698,2]
[333758166,1722455439171,-500.0,0.00013698,2]
[333758167,1722455439184,-500.0,0.00013698,2]
[333758169,1722455439194,-500.0,0.00013698,2]
[333758170,1722455439203,-500.0,0.00013698,2]
[333758171,1722455439213,-504.83737001,0.00013698,2]
[333758172,1722455439223,-500.0,0.00013698,2]
[333758173,1722455439232,-500.0,0.00013698,2]
[333758174,1722455439241,-500.0,0.00013698,2]
[333758175,1722455439251,-500.0,0.00013698,2]
[333758176,1722455439261,-500.0,0.00013698,2]
[333758177,1722455439271,-500.0,0.00013698,2]
[333758178,1722455439280,-500.0,0.00013698,2]
[333758179,1722455439290,-522.21,0.00013698,2]
[333758181,1722455439299,-500.0,0.00013698,2]
[333758183,1722455439309,-500.0,0.00013698,2]
[333758185,1722455439319,-500.0,0.00013698,2]
[333758187,1722455439329,-500.0,0.00013698,2]
[333758189,1722455439338,-736.84,0.00013698,2]
[333758191,1722455439348,-500.0,0.00013698,2]
[333758194,1722455439357,-1171.15,0.00013698,2]
[333758197,1722455439367,-600.77,0.00013698,2]
[333758200,1722455439377,-500.0,0.00013698,2]
[333758202,1722455439386,-500.0,0.00013698,2]
[333758203,1722455439396,-500.0,0.00013698,2]
[333758204,1722455439406,-500.0,0.00013698,2]
[333758205,1722455439418,-757.94,0.00013698,2]
[333758207,1722455439427,-500.0,0.00013698,2]
[333758208,1722455439437,-502.51666468,0.00013698,2]
[333758209,1722455439447,-500.0,0.00013698,2]
[333758210,1722455439457,-500.0,0.00013698,2]
[333758211,1722455439467,-500.0,0.00013698,2]
[333758212,1722455439476,-500.0,0.00013698,2]
[333758213,1722455439486,-500.0,0.00013698,2]
[333758214,1722455439497,-500.0,0.00013698,2]
[333758215,1722455439507,-547.53470764,0.00013698,2]
[333758216,1722455439517,-500.0,0.00013698,2]
[333758217,1722455439527,-500.0,0.00013698,2]
[333758218,1722455439537,-500.0,0.00013698,2]
[333758219,1722455439547,-500.0,0.00013698,2]
[333758220,1722455439556,-500.0,0.00013698,2]
[333758221,1722455439567,-500.0,0.00013698,2]
[333758222,1722455439577,-500.0,0.00013698,2]
[333758224,1722455439587,-500.0,0.00013698,2]
[333758225,1722455439598,-500.0,0.00013698,2]
[333758226,1722455439608,-500.0,0.00013698,2]
[333758227,1722455439619,-500.0,0.00013698,2]
[333758228,1722455439629,-500.0,0.00013698,2]
[333758229,1722455439639,-1221.92,0.00013698,2]
[333758230,1722455439649,-500.0,0.00013698,2]
[333758231,1722455439663,-372.93496638,0.00013698,2]
[333758232,1722455439673,-500.0,0.00013698,2]
[333758233,1722455439686,-500.0,0.00013698,2]
[333758234,1722455439696,-780.91,0.00013698,2]
[333758235,1722455439706,-500.0,0.00013698,2]
[333758236,1722455439716,-500.0,0.00013698,2]
[333758237,1722455439726,-627.47,0.00013698,2]
[333758238,1722455439735,-522.47519165,0.00013698,2]
[333758240,1722455439745,-500.0,0.00013698,2]
[333758242,1722455439755,-500.0,0.00013698,2]
[333758244,1722455439766,-500.0,0.00013698,2]
[333758245,1722455439776,-500.0,0.00013698,2]
[333758246,1722455439786,-500.0,0.00013698,2]
[333758247,1722455439795,-500.0,0.00013698,2]
[333758248,1722455439807,-500.0,0.00013698,2]
[333758249,1722455439816,-500.0,0.00013698,2]
[333758250,1722455439831,-1250.78,0.00013698,2]
[333758251,1722455439842,-500.0,0.00013698,2]
[333758252,1722455439851,-422.06808385,0.00013698,2]
[333758254,1722455439860,-500.0,0.00013698,2]
[333758255,1722455439871,-500.0,0.00013698,2]
[333758257,1722455439880,-500.0,0.00013698,2]
[333758258,1722455439890,-500.0,0.00013698,2]
[333758259,1722455439900,-500.0,0.00013698,2]
[333758260,1722455439915,-500.0,0.00013698,2]
[333758261,1722455439925,-500.0,0.00013698,2]
[333758262,1722455439935,-500.0,0.00013698,2]
[333758263,1722455439945,-518.09102675,0.00013698,2]
[333758264,1722455439955,-500.0,0.00013698,2]
[333758265,1722455439965,-500.0,0.00013698,2]
[333758266,1722455439975,-1355.26,0.00013698,2]
[333758267,1722455439986,-500.0,0.00013698,2]
[333758268,1722455439995,-501.47527301,0.00013698,2]
[333758269,1722455440005,-504.88825234,0.00013698,2]
[333758270,1722455440015,-161.96211783,0.00013698,2]
[333758271,1722455440027,-500.0,0.00013698,2]
[333758272,1722455440037,-500.0,0.00013698,2]
[333758273,1722455440047,-502.93396417,0.00013698,2]
[333758274,1722455440057,-500.0,0.00013698,2]
[333758275,1722455440068,-500.0,0.00013698,2]
[333758276,1722455440077,-500.0,0.00013698,2]
[333758277,1722455440087,-500.0,0.00013698,2]
[333758278,1722455440097,-791.14,0.00013698,2]
[333758279,1722455440107,-500.0,0.00013698,2]
[333758280,1722455440117,-937.35,0.00013698,2]
[333758281,1722455440126,-500.0,0.00013698,2]
[333758282,1722455440136,-500.0,0.00013698,2]
[333758283,1722455440147,-500.0,0.00013698,2]
[333758284,1722455440157,-500.0,0.00013698,2]
[333758285,1722455440173,-440.48102587,0.00013698,2]
[333758286,1722455440183,-500.0,0.00013698,2]
[333758287,1722455440192,-500.0,0.00013698,2]
[333758288,1722455440201,-678.15,0.00013698,2]
[333758289,1722455440210,-500.0,0.00013698,2]
[333758290,1722455440220,-500.0,0.00013698,2]
[333758291,1722455440231,-500.0,0.00013698,2]
[333758292,1722455440240,-500.0,0.00013698,2]
[333758293,1722455440250,-500.0,0.00013698,2]
[333758294,1722455440260,-500.0,0.00013698,2]
[333758295,1722455440270,-500.0,0.00013698,2]
[333758296,1722455440280,-500.0,0.00013698,2]
[333758297,1722455440289,-500.0,0.00013698,2]
[333758298,1722455440299,-500.0,0.00013698,2]
[333758299,1722455440309,-794.95,0.00013698,2]
[333758300,1722455440319,-500.0,0.00013698,2]
[333758301,1722455440329,-551.12708094,0.00013698,2]
[333758302,1722455440339,-500.0,0.00013698,2]
[333758303,1722455440348,-1685.46,0.00013698,2]
[333758304,1722455440358,-3405.96,0.00013698,2]
[333758305,1722455440368,-656.85,0.00013698,2]
[333758306,1722455440377,-501.80601202,0.00013698,2]
[333758307,1722455440386,-1246.72,0.00013698,2]
[333758308,1722455440396,-500.0,0.00013698,2]
[333758309,1722455440406,-500.0,0.00013698,2]
[333758310,1722455440421,-500.0,0.00013698,2]
[333758311,1722455440430,-519.43,0.00013698,2]
[333758312,1722455440440,-500.0,0.00013698,2]
[333758313,1722455440450,-500.0,0.00013698,2]
[333758314,1722455440460,-500.0,0.00013698,2]
[333758315,1722455440613,-500.0,0.00013698,2]
[333758316,1722455440624,-750.08,0.00013698,2]
[333758317,1722455440634,-500.0,0.00013698,2]
[333758318,1722455440644,-500.0,0.00013698,2]
[333758319,1722455440654,-500.0,0.00013698,2]
[333758320,1722455440666,-792.57,0.00013698,2]
[333758321,1722455440676,-500.0,0.00013698,2]
[333758322,1722455440685,-198.53077676,0.00013698,2]
[333758323,1722455440695,-500.0,0.00013698,2]
[333758324,1722455440704,-387.82120209,0.00013698,2]
[333758325,1722455440714,-500.0,0.00013698,2]
[333758326,1722455440723,-500.0,0.00013698,2]
[333758327,1722455440733,-500.0,0.00013698,2]
[333758328,1722455440743,-864.43,0.00013698,2]
[333758329,1722455440753,-1344.2,0.00013698,2]
[333758330,1722455440763,-500.0,0.00013698,2]
[333758331,1722455440774,-500.0,0.00013698,2]
[333758332,1722455440783,-500.0,0.00013698,2]
[333758333,1722455440794,-302.94005181,0.00013698,2]
[333758334,1722455440804,-500.0,0.00013698,2]
[333758335,1722455440813,-1097.3,0.00013698,2]
[333758336,1722455440824,-500.0,0.00013698,2]
[333758337,1722455440833,-500.0,0.00013698,2]
[333758338,1722455440843,-151.0,0.00013698,2]
[333758339,1722455440853,-500.0,0.00013698,2]
[333758340,1722455440863,-3450.34,0.00013698,2]
[333758341,1722455440873,-500.0,0.00013698,2]
[333758342,1722455440882,-500.0,0.00013698,2]
[333758343,1722455440893,-500.0,0.00013698,2]
[333758344,1722455440910,-959.84,0.00013698,2]
[333758345,1722455440919,-2017.84,0.00013698,2]
[333758346,1722455440928,-500.0,0.00013698,2]
[333758347,1722455440938,-500.0,0.00013698,2]
[333758348,1722455440947,-500.0,0.00013698,2]
[333758349,1722455440956,-500.0,0.00013698,2]
[333758350,1722455440967,-1660.92,0.00013698,2]
[333758351,1722455440976,-1943.68,0.00013698,2]
[333758352,1722455440986,-500.0,0.00013698,2]
[333758353,1722455440996,-6027.31,0.00013698,2]
[333758354,1722455441006,-500.0,0.00013698,2]
[333758355,1722455441016,-1635.32,0.00013698,2]
[333758356,1722455441028,-151.0,0.00013698,2]
[333758357,1722455441037,-1211.04,0.00013698,2]
[333758358,1722455441046,-504.33909929,0.00013698,2]
[333758359,1722455441056,-500.0,0.00013698,2]
[333758360,1722455441066,-10003.25,0.00013698,2]
[333758361,1722455441076,-3079.09,0.00013698,2]
[333758362,1722455441085,-500.0,0.00013698,2]
[333758363,1722455441094,-500.0,0.00013698,2]
[333758364,1722455441104,-696.15,0.00013698,2]
[333758365,1722455441114,-1446.9,0.00013698,2]
[333758366,1722455441123,-500.0,0.00013698,2]
[333758367,1722455441133,-202.994416,0.00013698,2]
[333758368,1722455441143,-500.0,0.00013698,2]
[333758369,1722455441153,-202.994416,0.00013698,2]
[333758370,1722455441166,-1022.4,0.00013698,2]
[333758371,1722455441177,-500.0,0.00013698,2]
[333758372,1722455441187,-500.0,0.00013698,2]
[333758373,1722455441197,-3474.86,0.00013698,2]
[333758374,1722455441208,-500.0,0.00013698,2]
[333758375,1722455441220,-500.0,0.00013698,2]
[333758376,1722455441230,-500.0,0.00013698,2]
[333758377,1722455441241,-500.0,0.00013698,2]
[333758378,1722455441251,-575.81,0.00013698,2]
[333758379,1722455441261,-500.0,0.00013698,2]
[333758380,1722455441271,-500.0,0.00013698,2]
[333758381,1722455441280,-2764.38,0.00013698,2]
[333758382,1722455441289,-505.12737999,0.00013698,2]
[333758383,1722455441299,-1391.48,0.00013698,2]
[333758384,1722455441308,-531.83,0.00013698,2]
[333758385,1722455441318,-618.25,0.00013698,2]
[333758386,1722455441328,-643.4,0.00013698,2]
[333758387,1722455441337,-1755.38,0.00013698,2]
[333758388,1722455441347,-500.0,0.00013698,2]
[333758389,1722455441359,-884.61,0.00013698,2]
[333758390,1722455441369,-1565.07,0.00013698,2]
[333758391,1722455441379,-1818.7,0.00013698,2]
[333758392,1722455441389,-720.9,0.00013698,2]
[333758393,1722455441398,-257.42249911,0.00013698,2]
[333758394,1722455441410,-1362.82,0.00013698,2]
[333758395,1722455441422,-500.0,0.00013698,2]
[333758396,1722455441432,-500.0,0.00013698,2]
[333758397,1722455441441,-500.0,0.00013698,2]
[333758398,1722455441451,-500.0,0.00013698,2]
[333758399,1722455441460,-479.6951951,0.00013698,2]
[333758400,1722455441470,-500.0,0.00013698,2]
[333758401,1722455441480,-548.22,0.00013698,2]
[333758402,1722455441490,-1430.96,0.00013698,2]
[333758403,1722455441499,-500.0,0.00013698,2]
[333758404,1722455441509,-500.0,0.00013698,2]
[333758405,1722455441519,-730.96,0.00013698,2]
[333758406,1722455441530,-500.0,0.00013698,2]
[333758407,1722455441540,-500.0,0.00013698,2]
[333758408,1722455441549,-500.0,0.00013698,2]
[333758409,1722455441561,-775.0,0.00013698,2]
[333758410,1722455441571,-1043.76,0.00013698,2]
[333758411,1722455441581,-500.0,0.00013698,2]
[333758412,1722455441591,-500.0,0.00013698,2]
[333758413,1722455441601,-500.0,0.00013698,2]
[333758414,1722455441610,-549.08,0.00013698,2]
[333758415,1722455441620,-151.0,0.00013698,2]
[333758416,1722455441629,-1303.16,0.00013698,2]
[333758417,1722455441639,-500.0,0.00013698,2]
[333758418,1722455441649,-500.0,0.00013698,2]
[333758419,1722455441662,-500.0,0.00013698,2]
[333758420,1722455441671,-500.0,0.00013698,2]
[333758421,1722455441681,-514.44022575,0.00013698,2]
[333758422,1722455441691,-2243.97,0.00013698,2]
[333758423,1722455441701,-645.08,0.00013698,2]
[333758424,1722455441710,-2243.97,0.00013698,2]
[333758425,1722455441721,-2243.97,0.00013698,2]
[333758426,1722455441731,-2243.97,0.00013698,2]
[333758427,1722455441742,-2243.97,0.00013698,2]
[333758428,1722455441752,-563.33,0.00013698,2]
[333758429,1722455441762,-2243.97,0.00013698,2]
[333758430,1722455441773,-2243.97,0.00013698,2]
[333758431,1722455441784,-953.89,0.00013698,2]
[333758432,1722455441794,-2243.97,0.00013698,2]
[333758433,1722455441806,-500.0,0.00013698,2]
[333758434,1722455441819,-2243.97,0.00013698,2]
[333758435,1722455441829,-537.21,0.00013698,2]
[333758436,1722455441839,-3287.04,0.00013698,2]
[333758437,1722455441850,-2808.57,0.00013698,2]
[333758438,1722455441860,-1683.839247,0.00013698,2]
[333758439,1722455441870,-1446.29,0.00013698,2]
[333758440,1722455441881,-1683.839247,0.00013698,2]
[333758441,1722455441895,-500.0,0.00013698,2]
[333758442,1722455441905,-500.0,0.00013698,2]
[333758443,1722455441918,-1588.32,0.00013698,2]
[333758444,1722455441929,-594.27,0.00013698,2]
[333758445,1722455441939,-1505.889265,0.00013698,2]
[333758446,1722455441950,-1255.24,0.00013698,2]
[333758447,1722455441961,-601.01,0.00013698,2]
[333758448,1722455441970,-1505.889265,0.00013698,2]
[333758449,1722455441982,-8556.43,0.00013698,2]
[333758450,1722455441991,-181.20532155,0.00013698,2]
[333758451,1722455442001,-502.92560103,0.00013698,2]
[333758452,1722455442011,-500.0,0.00013698,2]
[333758453,1722455442021,-915.99,0.00013698,2]
[333758454,1722455442030,-713.03,0.00013698,2]
[333758455,1722455442041,-500.0,0.00013698,2]
[333758456,1722455442051,-1211.63,0.00013698,2]
[333758457,1722455442060,-500.0,0.00013698,2]
[333758458,1722455442069,-1075.04,0.00013698,2]
[333758459,1722455442079,-500.0,0.00013698,2]
[333758460,1722455442089,-500.0,0.00013698,2]
[333758461,1722455442099,-500.0,0.00013698,2]
[333758462,1722455442109,-597.17,0.00013698,2]
[333758463,1722455442118,-500.0,0.00013698,2]
[333758464,1722455442128,-500.0,0.00013698,2]
[333758465,1722455442138,-7467.2,0.00013698,2]
[333758466,1722455442149,-1183.721013,0.00013698,2]
[333758467,1722455442159,-574.3490948,0.00013699,2]
[333758468,1722455442170,-3000.0,0.00013699,2]
[333758469,1722455442180,-629.389903,0.00013699,2]
[333758470,1722455442190,-151.0,0.00013699,2]
[333758471,1722455442199,-500.0,0.00013699,2]
[333758472,1722455442209,-500.0,0.00013699,2]
[333758473,1722455442219,-503.02598362,0.00013699,2]
[333758474,1722455442228,-1683.839247,0.00013699,2]
[333758476,1722455442238,-1683.839247,0.00013699,2]
[333758479,1722455442247,-1505.889265,0.00013699,2]
[333758482,1722455442257,-1505.889265,0.00013699,2]
[333758483,1722455442267,-151.0,0.00013699,2]
[333758484,1722455442277,-1183.721013,0.00013699,2]
[333758485,1722455442286,-151.0,0.00013772,2]
[333758486,1722455442296,-151.0,0.00013772,2]
[333758487,1722455442306,-202.994416,0.00013772,2]
[333758488,1722455442315,-202.994416,0.00013772,2]
[333758489,1722455442325,-151.0,0.00013772,2]
[333758490,1722455442335,-500.0,0.00013861,2]
[333758491,1722455442344,-2243.97,0.00013861,2]
[333758492,1722455442353,-286.93485632,0.00013862,2]
[333758496,1722455442529,-14.92296968,0.00013862,2]
[333758499,1722455442539,-151.0,0.00013862,2]
[333758503,1722455442548,-301.857826,0.00013862,2]
[333758504,1722455442558,-547.004898,0.00013862,2]
[333758506,1722455442568,-547.004898,0.00013862,2]
[333758507,1722455442578,-151.707269,0.00013862,2]
[333758508,1722455442588,-151.0,0.00013862,2]
[333758510,1722455442598,-151.0,0.00013862,2]
[333758512,1722455442607,-549.050297,0.00013862,2]
[333758514,1722455442618,-549.050297,0.00013862,2]
[333758516,1722455442628,-151.0,0.00013862,2]
[333758518,1722455442637,-186.524981,0.00013862,2]
[333758519,1722455442657,-186.524981,0.00013862,2]
[333758520,1722455442674,-1833.139749,0.00013862,2]
[333758521,1722455442683,-224.204263,0.00013862,2]
[333758522,1722455442692,-1833.139749,0.00013862,2]
[333758523,1722455442839,-224.204263,0.00013862,2]
[333758524,1722455442850,-162.03309,0.00013862,2]
[333758525,1722455442859,-162.03309,0.00013862,2]
[333758526,1722455442870,-151.0,0.00013862,2]
[333758527,1722455442880,-152.398185,0.00013862,2]
[333758528,1722455442890,-151.0,0.00013862,2]
[333758529,1722455442900,-151.0,0.00013862,2]
[333758530,1722455442912,-151.0,0.00013862,2]
[333758531,1722455442925,-151.0,0.00013862,2]
[333758532,1722455442935,-1573.681966,0.00013862,2]
[333758533,1722455442945,-151.0,0.00013862,2]
[333758534,1722455442955,-1573.681966,0.00013862,2]
[333758535,1722455442965,-151.0,0.00013862,2]
[333758536,1722455442975,-151.0,0.00013862,2]
[333758537,1722455442985,-151.0,0.00013862,2]
[333758538,1722455442995,-15607.4358214,0.00013862,2]
[333758539,1722455443004,-1159.51983557,0.00013871,2]
[333758540,1722455443014,-500.0,0.00013871,2]
[333758541,1722455443023,-500.0,0.00013871,2]
[333758542,1722455443033,-2243.97,0.00013871,2]
[333758543,1722455443043,-2243.97,0.00013871,2]
[333758544,1722455443052,-2243.97,0.00013871,2]
[333758545,1722455443062,-152.290472,0.00013872,2]
[333758546,1722455443072,-421.445762,0.00013872,2]
[333758547,1722455443082,-421.445762,0.00013872,2]
[333758548,1722455443091,-151.0,0.00013872,2]
[333758549,1722455443101,-151.0,0.00013872,2]
[333758550,1722455443111,-151.0,0.00013872,2]
[333758551,1722455443120,-151.0,0.00013872,2]
[333758552,1722455443130,-151.0,0.00013872,2]
[333758553,1722455443141,-151.0,0.00013872,2]
[333758554,1722455443151,-301.857826,0.00013872,2]
[333758555,1722455443162,-301.857826,0.00013872,2]
[333758556,1722455443174,-547.004898,0.00013872,2]
[333758557,1722455443183,-547.004898,0.00013872,2]
[333758558,1722455443193,-151.0,0.00013872,2]
[333758559,1722455443203,-200.0,0.00013872,2]
[333758560,1722455443213,-151.0,0.00013878,2]
[333758561,1722455443224,-151.0,0.00013961,2]
[333758562,1722455443236,-151.0,0.00013961,2]
[333758563,1722455443247,-151.0,0.00013961,2]
[333758564,1722455443258,-500.0,0.00013961,2]
[333758565,1722455443268,-2243.97,0.00013961,2]
[333758566,1722455443278,-2243.97,0.00013961,2]
[333758567,1722455443288,-301.857826,0.00013962,2]
[333758568,1722455443298,-301.857826,0.00013962,2]
[333758569,1722455443308,-547.004898,0.00013962,2]
[333758570,1722455443318,-547.004898,0.00013962,2]
[333758571,1722455443328,-151.0,0.00013962,2]
[333758572,1722455443338,-549.050297,0.00013962,2]
[333758573,1722455443348,-549.050297,0.00013962,2]
[333758574,1722455443359,-151.0,0.00013962,2]
[333758575,1722455443369,-186.524981,0.00013962,2]
[333758576,1722455443378,-186.524981,0.00013962,2]
[333758577,1722455443391,-1833.139749,0.00013962,2]
[333758578,1722455443400,-224.204263,0.00013962,2]
[333758579,1722455443409,-1833.139749,0.00013962,2]
[333758580,1722455443424,-224.204263,0.00013962,2]
[333758581,1722455443435,-162.03309,0.00013962,2]
[333758582,1722455443446,-162.03309,0.00013962,2]
[333758583,1722455443458,-151.0,0.00013962,2]
[333758584,1722455443469,-151.0,0.00013962,2]
[333758585,1722455443479,-151.0,0.00013962,2]
[333758586,1722455443488,-151.0,0.00013962,2]
[333758587,1722455443499,-151.0,0.00013962,2]
[333758588,1722455443508,-151.0,0.00013962,2]
[333758589,1722455443519,-202.994416,0.00013962,2]
[333758590,1722455443530,-202.994416,0.00013962,2]
[333758591,1722455443540,-1573.681966,0.00013962,2]
[333758592,1722455443551,-151.0,0.00013962,2]
[333758593,1722455443563,-1338.31453747,0.00013962,2]
[333758595,1722455443577,-235.36742853,0.00013962,2]
[333758596,1722455443587,-151.0,0.00013962,2]
[333758597,1722455443597,-151.0,0.00013962,2]
[333758598,1722455443607,-1683.839247,0.00013962,2]
[333758600,1722455443616,-1683.839247,0.00013962,2]
[333758602,1722455443626,-1505.889265,0.00013962,2]
[333758604,1722455443636,-1279.67409821,0.00013962,2]
[333758605,1722455443648,-226.21516679,0.00013962,2]